[Event "DVM U10 2024"]
[Site "Duesseldorf"]
[Date "2024.12.27"]
[Round "1"]
[White "Schacht, Jakob Otto"]
[Black "Thirumal, Shravan"]
[Result "1-0"]
[ECO "B03"]
[WhiteElo "1064"]
[BlackElo "1614"]
[Annotator "NA RC"]
[PlyCount "157"]
[EventDate "2024.12.23"]
[EventType "team-tourn"]
[EventRounds "7"]
[EventCountry "GER"]
[SourceTitle "playchess.com"]
[Source "ChessBase"]
[SourceQuality "1"]
[TimeControl "3300+5"]

1. e4 {[%emt 0:00:02]} Nf6 {[%emt 0:00:21]} 2. e5 {[%emt 0:00:34]} Nd5 {[%emt 0:00:09]} 3. d4 {[%emt 0:00:20]} Nc6 {[%emt 0:00:06]} 4. Bc4 {[%emt 0:00:34]} Nb6 {[%emt 0:00:37]} 5. Bb3 {[%emt 0:00:28]} e6 {[%emt 0:03:43]} 6. Nf3 {[%emt 0:01:22]} g6 {[%emt 0:00:38]} 7. Be3 {[%emt 0:05:34]} d6 {[%emt 0:05:57]} 8. Nc3 {[%emt 0:00:00]} Bg7 {[%emt 0:07:07]} 9. exd6 {[%emt 0:08:47]} Qxd6 {[%emt 0:00:49]} 10. Qd2 {[%emt 0:01:35]} O-O {[%emt 0:03:06]} 11. O-O-O {[%emt 0:01:40]} a5 {[%emt 0:02:16]} 12. a3 {[%emt 0:00:30]} Nd5 {[%emt 0:01:54]} 13. Nxd5 {[%emt 0:01:57]} exd5 {[%emt 0:00:29]} 14. Bh6 {[%emt 0:00:37]} b5 {[%emt 0:01:34]} 15. Bxg7 {[%emt 0:02:26]} Kxg7 {[%emt 0:01:01]} 16. Rde1 {[%emt 0:07:54]} b4 {[%emt 0:01:33]} 17. a4 {[%emt 0:00:09]} Ba6 {[%emt 0:01:06]} 18. Ne5 {[%emt 0:03:55]} Nxe5 {[%emt 0:00:54]} 19. Rxe5 {[%emt 0:00:11]} c5 {[%emt 0:00:54]} 20. Rxd5 {[%emt 0:00:17]} Qc6 {[%emt 0:01:30]} 21. dxc5 {[%emt 0:00:21]} Rac8 {[%emt 0:01:32]} 22. Qd4+ {[%emt 0:00:19]} Qf6 {[%emt 0:02:45]} 23. Qxf6+ {[%emt 0:00:18]} Kxf6 {[%emt 0:00:59]} 24. Rd6+ {[%emt 0:00:32]} Kg5 {[%emt 0:00:23]} 25. Rxa6 {[%emt 0:00:05]} Rxc5 {[%emt 0:10:47]} 26. Kd2 {[%emt 0:00:43]} f5 {[%emt 0:00:08]} 27. Ke3 {[%emt 0:00:24]} Re8+ {[%emt 0:00:02]} 28. Kd4 {[%emt 0:00:18]} Rc7 {[%emt 0:00:01]} 29. Rxa5 {[%emt 0:00:21]} Rd8+ {[%emt 0:00:12]} 30. Rd5 {[%emt 0:00:10]} Re8 {[%emt 0:00:16]} 31. a5 {[%emt 0:00:55]} Re4+ {[%emt 0:00:12]} 32. Kd3 {[%emt 0:00:53]} Rce7 {[%emt 0:00:12]} 33. Rd4 {[%emt 0:00:28]} Re2 {[%emt 0:00:16]} 34. Rf1 {[%emt 0:00:25]} R2e5 {[%emt 0:00:17]} 35. Rxb4 {[%emt 0:00:29]} Rd7+ {[%emt 0:00:20]} 36. Rd4 {[%emt 0:00:24]} Ra7 {[%emt 0:00:12]} 37. Rd5 {[%emt 0:00:18]} Ree7 {[%emt 0:00:38]} 38. Ra1 {[%emt 0:00:20]} Rec7 {[%emt 0:00:05]} 39. Ra4 {[%emt 0:00:26]} Re7 {[%emt 0:01:16]} 40. Kd2 {[%emt 0:00:28]} Rec7 {[%emt 0:00:05]} 41. Rc4 {[%emt 0:00:18]} Re7 {[%emt 0:00:02]} 42. Rc6 {[%emt 0:00:48]} Reb7 {[%emt 0:00:01]} 43. Rb6 {[%emt 0:00:37]} Re7 {[%emt 0:00:01]} 44. Rdb5 {[%emt 0:00:58]} Red7+ {[%emt 0:00:01]} 45. Rd5 {[%emt 0:00:28]} Re7 {[%emt 0:00:02]} 46. a6 {[%emt 0:00:33]} Rec7 {[%emt 0:00:01]} 47. Kd3 {[%emt 0:00:27]} Re7 {[%emt 0:00:07]} 48. Bc4 {[%emt 0:00:06]} Rec7 {[%emt 0:00:21]} 49. Rb7 {[%emt 0:00:41]} Rcxb7 {[%emt 0:00:05]} 50. axb7 {[%emt 0:00:17]} Rxb7 {[%emt 0:00:01]} 51. b3 {[%emt 0:00:20]} Rb6 {[%emt 0:00:01]} 52. Kd4 {[%emt 0:00:15]} Rb7 {[%emt 0:00:01]} 53. Kc5 {[%emt 0:00:35]} Kf6 {[%emt 0:00:01]} 54. Rd6+ {[%emt 0:00:30]} Ke7 {[%emt 0:00:01]} 55. Ba6 {[%emt 0:00:32]} Rb8 {[%emt 0:00:01]} 56. Rb6 {[%emt 0:00:15]} Ra8 {[%emt 0:00:13]} 57. Kc6 {[%emt 0:00:32]} Kd8 {[%emt 0:00:01]} 58. Kd6 {[%emt 0:00:47]} g5 {[%emt 0:00:08]} 59. c4 {[%emt 0:00:01]} h5 {[%emt 0:00:05]} 60. c5 {[%emt 0:00:01]} Ke8 {[%emt 0:00:10]} 61. c6 {[%emt 0:00:24]} Rd8+ {[%emt 0:00:01]} 62. Ke6 {[%emt 0:00:10]} f4 {[%emt 0:00:01]} 63. c7 {[%emt 0:00:03]} Ra8 {[%emt 0:00:09]} 64. c8=Q+ {[%emt 0:00:09]} Rxc8 {[%emt 0:00:02]} 65. Bxc8 {[%emt 0:00:02]} g4 {[%emt 0:00:07]} 66. Bd7+ {[%emt 0:00:03]} Kf8 {[%emt 0:00:01]} 67. Rc6 {[%emt 0:00:04]} Kg7 {[%emt 0:00:01]} 68. b4 {[%emt 0:00:01]} h4 {[%emt 0:00:01]} 69. b5 {[%emt 0:00:04]} g3 {[%emt 0:00:01]} 70. fxg3 {[%emt 0:00:09]} h3 {[%emt 0:00:04]} 71. gxh3 {[%emt 0:00:03]} f3 {[%emt 0:00:01]} 72. Rc2 {[%emt 0:00:05]} Kg6 {[%emt 0:00:09]} 73. Rf2 {[%emt 0:00:01]} Kg5 {[%emt 0:00:03]} 74. b6 {[%emt 0:00:02]} Kg6 {[%emt 0:00:04]} 75. b7 {[%emt 0:00:01]} Kg5 {[%emt 0:00:01]} 76. b8=Q {[%emt 0:00:07]} Kg6 {[%emt 0:00:01]} 77. Qg8+ {[%emt 0:00:37]} Kh5 {[%emt 0:00:02]} 78. Kf6 {[%emt 0:00:10]} Kh6 {[%emt 0:00:05]} 79. Qg6# {[%emt 0:00:03]} 1-0

[Event "DVM U10 2024"]
[Site "Duesseldorf"]
[Date "2024.12.27"]
[Round "1"]
[White "Steffen, Leon"]
[Black "Schubert, Anton"]
[Result "0-1"]
[ECO "C50"]
[WhiteElo "1058"]
[BlackElo "824"]
[Annotator "NA RC"]
[PlyCount "102"]
[EventDate "2024.12.23"]
[EventType "team-tourn"]
[EventRounds "7"]
[EventCountry "GER"]
[SourceTitle "playchess.com"]
[Source "ChessBase"]
[SourceQuality "1"]
[TimeControl "3300+5"]

1. e4 {[%emt 0:00:01]} e5 {[%emt 0:00:07]} 2. Nf3 {[%emt 0:00:05]} Nc6 {[%emt 0:00:16]} 3. Bc4 {[%emt 0:00:05]} Bc5 {[%emt 0:00:24]} 4. O-O {[%emt 0:00:16]} Nf6 {[%emt 0:00:15]} 5. d3 {[%emt 0:00:17]} O-O {[%emt 0:00:18]} 6. h3 {[%emt 0:00:28]} d6 {[%emt 0:00:13]} 7. Nc3 {[%emt 0:00:20]} Be6 {[%emt 0:01:40]} 8. Bxe6 {[%emt 0:00:11]} fxe6 {[%emt 0:00:22]} 9. Ng5 {[%emt 0:00:18]} Qe8 {[%emt 0:01:26]} 10. Nb5 {[%emt 0:00:58]} Bb6 {[%emt 0:01:10]} 11. Be3 {[%emt 0:00:32]} Qe7 {[%emt 0:01:33]} 12. Bxb6 {[%emt 0:00:22]} axb6 {[%emt 0:00:21]} 13. Qf3 {[%emt 0:01:25]} Ne8 {[%emt 0:01:07]} 14. Qh5 {[%emt 0:00:38]} h6 {[%emt 0:00:37]} 15. Nf3 {[%emt 0:01:12]} d5 {[%emt 0:02:34]} 16. Rad1 {[%emt 0:01:20]} Qf6 {[%emt 0:01:43]} 17. c4 {[%emt 0:01:49]} Rd8 {[%emt 0:01:03]} 18. cxd5 {[%emt 0:00:49]} exd5 {[%emt 0:00:30]} 19. exd5 {[%emt 0:00:36]} Rxd5 {[%emt 0:00:40]} 20. Nc3 {[%emt 0:00:19]} Rd8 {[%emt 0:01:04]} 21. Ne4 {[%emt 0:00:30]} Qf5 {[%emt 0:01:59]} 22. Qh4 {[%emt 0:02:19]} b5 {[%emt 0:01:46]} 23. Rfe1 {[%emt 0:01:20]} Qf4 {[%emt 0:01:21]} 24. Qh5 {[%emt 0:00:44]} Nd6 {[%emt 0:04:05]} 25. Neg5 {[%emt 0:01:25]} Nf7 {[%emt 0:01:37]} 26. Ne6 {[%emt 0:00:49]} Qf6 {[%emt 0:02:06]} 27. Nxf8 {[%emt 0:00:53]} Rxf8 {[%emt 0:00:20]} 28. Re4 {[%emt 0:01:34]} b4 {[%emt 0:03:04]} 29. d4 {[%emt 0:00:00]} exd4 {[%emt 0:00:52]} 30. Nxd4 {[%emt 0:00:00]} Rd8 {[%emt 0:00:40]} 31. Rd3 {[%emt 0:00:19]} Nxd4 {[%emt 0:00:41]} 32. Rexd4 {[%emt 0:00:36]} Rxd4 {[%emt 0:00:26]} 33. Rf3 {[%emt 0:00:10]} Rf4 {[%emt 0:01:13]} 34. Re3 {[%emt 0:00:59]} Rxf2 {[%emt 0:01:09]} 35. Qd1 {[%emt 0:01:03]} Qxb2 {[%emt 0:01:33]} 36. Qd5 {[%emt 0:01:38]} Qxa2 {[%emt 0:01:17]} 37. Re8+ {[%emt 0:01:53]} Kh7 {[%emt 0:00:35]} 38. Qe4+ {[%emt 0:00:48]} g6 {[%emt 0:00:11]} 39. Re6 {[%emt 0:00:27]} Rf5 {[%emt 0:00:48]} 40. g4 {[%emt 0:02:17]} Rg5 {[%emt 0:01:40]} 41. h4 {[%emt 0:00:20]} Qa1+ {[%emt 0:01:15]} 42. Kf2 {[%emt 0:00:27]} Nd6 {[%emt 0:03:31]} 43. Re7+ {[%emt 0:01:22]} Kh8 {[%emt 0:00:54]} 44. Qe6 {[%emt 0:00:31]} Qb2+ {[%emt 0:02:28]} 45. Kf3 {[%emt 0:00:30]} Qc3+ {[%emt 0:01:48]} 46. Kf2 {[%emt 0:00:47]} Qd4+ {[%emt 0:00:00]} 47. Ke2 {[%emt 0:00:21]} Rxg4 {[%emt 0:00:00]} 48. Qd7 {[%emt 0:01:03]} Re4+ {[%emt 0:00:00]} 49. Kf3 {[%emt 0:00:52]} Qf6+ {[%emt 0:00:00]} 50. Kg2 {[%emt 0:00:29]} Rxe7 {[%emt 0:00:07]} 51. Qd8+ {[%emt 0:00:27]} Ne8 {[%emt 0:02:24]} 0-1

[Event "DVM U10 2024"]
[Site "Duesseldorf"]
[Date "2024.12.27"]
[Round "1"]
[White "Müller, Charlie Erik"]
[Black "Wang, Alice"]
[Result "1-0"]
[ECO "C54"]
[WhiteElo "1043"]
[BlackElo "958"]
[Annotator "NA RC"]
[PlyCount "129"]
[EventDate "2024.12.23"]
[EventType "team-tourn"]
[EventRounds "7"]
[EventCountry "GER"]
[SourceTitle "playchess.com"]
[Source "ChessBase"]
[SourceQuality "1"]
[TimeControl "3300+5"]

1. e4 {[%emt 0:00:02]} e5 {[%emt 0:00:02]} 2. Nf3 {[%emt 0:00:14]} Nc6 {[%emt 0:00:11]} 3. Bc4 {[%emt 0:00:07]} Nf6 {[%emt 0:00:08]} 4. d3 {[%emt 0:00:18]} Bc5 {[%emt 0:00:10]} 5. c3 {[%emt 0:00:23]} O-O {[%emt 0:00:05]} 6. d4 {[%emt 0:00:22]} exd4 {[%emt 0:01:56]} 7. cxd4 {[%emt 0:00:12]} Bb4+ {[%emt 0:00:11]} 8. Nc3 {[%emt 0:00:11]} Nxe4 {[%emt 0:00:10]} 9. Qd3 {[%emt 0:02:39]} Nd6 {[%emt 0:01:24]} 10. Ng5 {[%emt 0:00:36]} Re8+ {[%emt 0:01:06]} 11. Be3 {[%emt 0:00:53]} Rxe3+ {[%emt 0:02:08]} 12. fxe3 {[%emt 0:05:01]} Qxg5 {[%emt 0:00:05]} 13. O-O-O {[%emt 0:00:05]} b5 {[%emt 0:00:05]} 14. Nxb5 {[%emt 0:00:05]} Nxc4 {[%emt 0:00:05]} 15. Qxc4 {[%emt 0:08:08]} Qxe3+ {[%emt 0:02:36]} 16. Kb1 {[%emt 0:01:54]} Ba6 {[%emt 0:00:24]} 17. d5 {[%emt 0:03:09]} Ne5 {[%emt 0:00:23]} 18. Qxb4 {[%emt 0:01:05]} Nd3 {[%emt 0:01:24]} 19. Qb3 {[%emt 0:02:03]} Bxb5 {[%emt 0:00:26]} 20. Qxb5 {[%emt 0:00:00]} Nf2 {[%emt 0:01:19]} 21. Rde1 {[%emt 0:00:00]} Qd2 {[%emt 0:01:20]} 22. Qxd7 {[%emt 0:01:03]} h6 {[%emt 0:00:42]} 23. Re8+ {[%emt 0:00:53]} Rxe8 {[%emt 0:00:19]} 24. Qxe8+ {[%emt 0:00:17]} Kh7 {[%emt 0:00:01]} 25. Qe1 {[%emt 0:02:14]} Qd3+ {[%emt 0:00:42]} 26. Ka1 {[%emt 0:00:18]} Nxh1 {[%emt 0:00:29]} 27. Qxh1 {[%emt 0:00:12]} Qxd5 {[%emt 0:00:06]} 28. Qc1 {[%emt 0:00:58]} Qxg2 {[%emt 0:00:10]} 29. a4 {[%emt 0:01:03]} f5 {[%emt 0:00:17]} 30. Qxc7 {[%emt 0:01:19]} Qxh2 {[%emt 0:00:40]} 31. Qxh2 {[%emt 0:00:08]} g5 {[%emt 0:00:16]} 32. Qc7+ {[%emt 0:00:12]} Kg6 {[%emt 0:00:06]} 33. Qd6+ {[%emt 0:00:23]} Kh5 {[%emt 0:00:27]} 34. Qh2+ {[%emt 0:00:48]} Kg6 {[%emt 0:00:11]} 35. b4 {[%emt 0:00:15]} g4 {[%emt 0:00:31]} 36. Qh4 {[%emt 0:00:15]} h5 {[%emt 0:00:34]} 37. a5 {[%emt 0:00:09]} f4 {[%emt 0:00:30]} 38. Qf2 {[%emt 0:00:39]} Kg5 {[%emt 0:00:11]} 39. Qc5+ {[%emt 0:04:13]} Kh4 {[%emt 0:00:45]} 40. Qf2+ {[%emt 0:01:16]} Kg5 {[%emt 0:00:06]} 41. Qc5+ {[%emt 0:01:34]} Kh4 {[%emt 0:00:58]} 42. Qf2+ {[%emt 0:00:00]} g3 {[%emt 0:00:00]} 43. Qxf4+ {[%emt 0:00:00]} Kh3 {[%emt 0:00:00]} 44. Qf3 {[%emt 0:00:00]} Kh2 {[%emt 0:00:00]} 45. Qxh5+ {[%emt 0:00:00]} Kg1 {[%emt 0:00:00]} 46. b5 {[%emt 0:00:00]} g2 {[%emt 0:00:00]} 47. Qg4 {[%emt 0:00:00]} Kf1 {[%emt 0:00:16]} 48. Qxg2+ {[%emt 0:00:00]} Kxg2 {[%emt 0:00:13]} 49. b6 {[%emt 0:00:06]} axb6 {[%emt 0:00:07]} 50. axb6 {[%emt 0:00:10]} Kf3 {[%emt 0:00:02]} 51. b7 {[%emt 0:00:05]} Ke4 {[%emt 0:00:30]} 52. b8=Q {[%emt 0:00:07]} Kf3 {[%emt 0:00:09]} 53. Qb4 {[%emt 0:00:07]} Ke3 {[%emt 0:00:09]} 54. Kb2 {[%emt 0:00:06]} Kd3 {[%emt 0:00:07]} 55. Ka3 {[%emt 0:00:06]} Ke3 {[%emt 0:00:09]} 56. Ka4 {[%emt 0:00:34]} Kd3 {[%emt 0:00:05]} 57. Kb5 Kc2 {[%emt 0:00:05]} 58. Kc5 {[%emt 0:00:10]} Kd3 {[%emt 0:00:05]} 59. Qd4+ Kc2 {[%emt 0:00:05]} 60. Qe3 {[%emt 0:00:10]} Kb2 {[%emt 0:00:05]} 61. Kb4 {[%emt 0:00:05]} Kc2 {[%emt 0:00:05]} 62. Qc3+ {[%emt 0:00:05]} Kd1 {[%emt 0:00:05]} 63. Qb2 {[%emt 0:00:05]} Ke1 {[%emt 0:00:05]} 64. Kc3 {[%emt 0:00:05]} Kd1 {[%emt 0:00:05]} 65. Qd2# {[%emt 0:00:05]} 1-0

[Event "DVM U10 2024"]
[Site "Duesseldorf"]
[Date "2024.12.27"]
[Round "1"]
[White "von der Thüsen, Gottfried"]
[Black "Götz, Georg"]
[Result "0-1"]
[ECO "C34"]
[WhiteElo "1041"]
[BlackElo "1284"]
[Annotator "NA"]
[PlyCount "32"]
[EventDate "2024.12.23"]
[EventType "team-tourn"]
[EventRounds "7"]
[EventCountry "GER"]
[SourceTitle "playchess.com"]
[Source "ChessBase"]
[SourceQuality "1"]
[TimeControl "3300+5"]

1. e4 {[%emt 0:00:07]} e5 {[%emt 0:00:09]} 2. f4 {[%emt 0:00:09]} exf4 {[%emt 0:00:53]} 3. Nf3 {[%emt 0:00:13]} Nc6 {[%emt 0:00:19]} 4. Bc4 {[%emt 0:00:25]} Bc5 {[%emt 0:00:30]} 5. d4 {[%emt 0:00:22]} Be7 {[%emt 0:04:05]} 6. h4 {[%emt 0:00:14]} d6 {[%emt 0:01:26]} 7. d5 {[%emt 0:00:19]} Ne5 {[%emt 0:00:44]} 8. Nbd2 {[%emt 0:00:51]} Nf6 {[%emt 0:00:49]} 9. Nxe5 {[%emt 0:00:51]} dxe5 {[%emt 0:00:27]} 10. Nf3 {[%emt 0:00:23]} Bg4 {[%emt 0:01:23]} 11. Bb5+ {[%emt 0:00:49]} c6 {[%emt 0:01:17]} 12. dxc6 {[%emt 0:00:40]} Qa5+ {[%emt 0:00:26]} 13. Bd2 {[%emt 0:04:18]} Qxb5 {[%emt 0:00:44]} 14. Bc3 {[%emt 0:00:06]} bxc6 {[%emt 0:00:58]} 15. Qd2 {[%emt 0:01:53]} Nxe4 {[%emt 0:01:45]} 16. Nxe5 {[%emt 0:00:47]} Nxd2 {[%emt 0:00:30]} 0-1

[Event "DVM U10 2024"]
[Site "Duesseldorf"]
[Date "2024.12.27"]
[Round "1"]
[White "Mettenbrink, Tammo"]
[Black "Nickel, Alexander"]
[Result "0-1"]
[ECO "C55"]
[WhiteElo "1029"]
[BlackElo "1200"]
[Annotator "NA RC"]
[PlyCount "46"]
[EventDate "2024.12.23"]
[EventType "team-tourn"]
[EventRounds "7"]
[EventCountry "GER"]
[SourceTitle "playchess.com"]
[Source "ChessBase"]
[SourceQuality "1"]
[TimeControl "3300+5"]

1. e4 {[%emt 0:00:05]} e5 {[%emt 0:00:02]} 2. Nf3 {[%emt 0:00:07]} Nc6 {[%emt 0:00:03]} 3. Bc4 {[%emt 0:00:13]} Nf6 {[%emt 0:00:12]} 4. Nc3 {[%emt 0:00:22]} Nxe4 {[%emt 0:00:15]} 5. Nxe4 {[%emt 0:00:13]} d5 {[%emt 0:00:02]} 6. Bxd5 {[%emt 0:00:21]} Qxd5 {[%emt 0:00:04]} 7. Nc3 {[%emt 0:00:42]} Qd8 {[%emt 0:00:31]} 8. O-O {[%emt 0:00:12]} Bg4 {[%emt 0:00:05]} 9. Re1 {[%emt 0:00:43]} Bd6 {[%emt 0:03:07]} 10. Re3 {[%emt 0:00:21]} O-O {[%emt 0:06:35]} 11. Qe1 {[%emt 0:00:18]} Bxf3 {[%emt 0:03:33]} 12. gxf3 {[%emt 0:01:11]} Nd4 {[%emt 0:02:00]} 13. Qd1 {[%emt 0:00:34]} Qh4 {[%emt 0:01:16]} 14. Re4 {[%emt 0:00:47]} Qh3 {[%emt 0:00:15]} 15. Re3 {[%emt 0:00:45]} Qh6 {[%emt 0:06:23]} 16. Re4 {[%emt 0:01:45]} f5 {[%emt 0:01:19]} 17. d3 {[%emt 0:00:38]} Qg6+ {[%emt 0:00:29]} 18. Rg4 {[%emt 0:00:36]} fxg4 {[%emt 0:00:31]} 19. fxg4 {[%emt 0:01:03]} Nf3+ {[%emt 0:01:13]} 20. Kh1 {[%emt 0:00:28]} Qxg4 {[%emt 0:00:13]} 21. Qf1 {[%emt 0:00:59]} e4 {[%emt 0:03:14]} 22. Nxe4 {[%emt 0:01:01]} Bxh2 {[%emt 0:00:34]} 23. Qg2 {[%emt 0:00:24]} Qh4 {[%emt 0:00:46]} 0-1

[Event "DVM U10 2024"]
[Site "Duesseldorf"]
[Date "2024.12.27"]
[Round "1"]
[White "Satheesh, Yazhini"]
[Black "Marx, Jakob"]
[Result "1/2-1/2"]
[ECO "C65"]
[WhiteElo "1023"]
[BlackElo "1591"]
[Annotator "NA RC"]
[PlyCount "46"]
[EventDate "2024.12.23"]
[EventType "team-tourn"]
[EventRounds "7"]
[EventCountry "GER"]
[SourceTitle "playchess.com"]
[Source "ChessBase"]
[SourceQuality "1"]
[TimeControl "3300+5"]

1. e4 {[%emt 0:00:01]} e5 {[%emt 0:00:04]} 2. Nf3 {[%emt 0:00:13]} Nc6 {[%emt 0:00:09]} 3. Nc3 {[%emt 0:00:30]} Nf6 {[%emt 0:00:08]} 4. Bb5 {[%emt 0:00:44]} d6 {[%emt 0:00:32]} 5. d3 {[%emt 0:01:15]} Be7 {[%emt 0:00:29]} 6. Bg5 {[%emt 0:02:55]} h6 {[%emt 0:00:23]} 7. Be3 {[%emt 0:03:40]} a6 {[%emt 0:00:45]} 8. Ba4 {[%emt 0:01:47]} b5 {[%emt 0:00:22]} 9. Bb3 {[%emt 0:00:35]} Bb7 {[%emt 0:00:15]} 10. O-O {[%emt 0:02:41]} O-O {[%emt 0:00:21]} 11. Qd2 {[%emt 0:01:28]} Re8 {[%emt 0:00:26]} 12. Rfe1 {[%emt 0:02:08]} Bf8 {[%emt 0:00:15]} 13. Nd5 {[%emt 0:02:36]} Nxd5 {[%emt 0:02:10]} 14. Bxd5 {[%emt 0:00:59]} Qc8 {[%emt 0:00:50]} 15. Qc3 {[%emt 0:01:43]} Ne7 {[%emt 0:01:06]} 16. Bxb7 {[%emt 0:01:09]} Qxb7 {[%emt 0:00:12]} 17. Rac1 {[%emt 0:01:36]} c5 {[%emt 0:00:45]} 18. b3 {[%emt 0:01:03]} f5 {[%emt 0:01:48]} 19. exf5 {[%emt 0:01:14]} Nxf5 {[%emt 0:00:15]} 20. Bd2 {[%emt 0:00:34]} Be7 {[%emt 0:00:59]} 21. Qb2 {[%emt 0:01:20]} Bf6 {[%emt 0:00:42]} 22. Qa3 {[%emt 0:01:17]} Nd4 {[%emt 0:01:10]} 23. Nxd4 {[%emt 0:00:59]} exd4 {[%emt 0:00:09]} 1/2-1/2

[Event "DVM U10 2024"]
[Site "Duesseldorf"]
[Date "2024.12.27"]
[Round "1"]
[White "Obermeier, Vitus"]
[Black "Kresse, Andreas"]
[Result "1-0"]
[ECO "C50"]
[WhiteElo "982"]
[BlackElo "744"]
[Annotator "NA RC"]
[PlyCount "65"]
[EventDate "2024.12.23"]
[EventType "team-tourn"]
[EventRounds "7"]
[EventCountry "GER"]
[SourceTitle "playchess.com"]
[Source "ChessBase"]
[SourceQuality "1"]
[TimeControl "3300+5"]

1. e4 {[%emt 0:00:03]} e5 {[%emt 0:00:05]} 2. Nf3 {[%emt 0:00:08]} Nc6 {[%emt 0:00:09]} 3. Bc4 {[%emt 0:00:17]} Bc5 {[%emt 0:00:22]} 4. Nxe5 {[%emt 0:00:20]} Nxe5 {[%emt 0:00:14]} 5. d4 {[%emt 0:00:19]} Nxc4 {[%emt 0:00:25]} 6. dxc5 {[%emt 0:00:06]} Nf6 {[%emt 0:00:21]} 7. b3 {[%emt 0:00:22]} Ne5 {[%emt 0:00:45]} 8. Bg5 {[%emt 0:00:52]} h6 {[%emt 0:00:50]} 9. Bxf6 {[%emt 0:01:02]} Qxf6 {[%emt 0:00:17]} 10. Nc3 {[%emt 0:00:31]} Ng4 {[%emt 0:00:22]} 11. Qxg4 {[%emt 0:00:11]} d6 {[%emt 0:00:12]} 12. Qd1 {[%emt 0:00:26]} O-O {[%emt 0:00:20]} 13. Nd5 {[%emt 0:00:09]} Qg6 {[%emt 0:00:50]} 14. Ne7+ {[%emt 0:01:03]} Kh7 {[%emt 0:00:41]} 15. Nxg6 {[%emt 0:00:10]} Kxg6 {[%emt 0:00:22]} 16. cxd6 {[%emt 0:00:31]} cxd6 {[%emt 0:00:03]} 17. Qxd6+ {[%emt 0:00:11]} Kh7 {[%emt 0:00:11]} 18. Qxf8 {[%emt 0:03:18]} a5 {[%emt 0:02:59]} 19. Rd1 {[%emt 0:00:00]} Bg4 {[%emt 0:01:23]} 20. Qxa8 {[%emt 0:00:00]} Bxd1 {[%emt 0:00:19]} 21. Kxd1 {[%emt 0:00:00]} a4 {[%emt 0:01:19]} 22. bxa4 {[%emt 0:00:00]} b5 {[%emt 0:00:17]} 23. axb5 {[%emt 0:00:00]} f5 {[%emt 0:00:09]} 24. exf5 {[%emt 0:00:09]} g6 {[%emt 0:00:09]} 25. fxg6+ {[%emt 0:00:05]} Kxg6 {[%emt 0:00:16]} 26. Re1 {[%emt 0:00:00]} h5 {[%emt 0:00:53]} 27. Qe4+ {[%emt 0:00:03]} Kg5 {[%emt 0:00:37]} 28. h4+ {[%emt 0:00:17]} Kh6 {[%emt 0:01:19]} 29. Qf4+ {[%emt 0:00:16]} Kg6 {[%emt 0:00:54]} 30. Re6+ {[%emt 0:00:06]} Kg7 {[%emt 0:00:32]} 31. Qf6+ {[%emt 0:00:11]} Kh7 {[%emt 0:00:55]} 32. Qg6+ {[%emt 0:00:30]} Kh8 {[%emt 0:00:25]} 33. Re8# {[%emt 0:01:21]} 1-0

[Event "DVM U10 2024"]
[Site "Duesseldorf"]
[Date "2024.12.27"]
[Round "1"]
[White "Wüstenberg, Felix"]
[Black "Tolle, Jonathan"]
[Result "0-1"]
[ECO "C50"]
[WhiteElo "975"]
[BlackElo "1149"]
[Annotator "NA RC"]
[PlyCount "51"]
[EventDate "2024.12.23"]
[EventType "team-tourn"]
[EventRounds "7"]
[EventCountry "GER"]
[SourceTitle "playchess.com"]
[Source "ChessBase"]
[SourceQuality "1"]
[TimeControl "3300+5"]

1. e4 {[%emt 0:00:00]} e5 {[%emt 0:00:03]} 2. Nf3 {[%emt 0:00:06]} Nc6 {[%emt 0:00:06]} 3. Bc4 {[%emt 0:00:05]} Bc5 {[%emt 0:00:06]} 4. Nc3 {[%emt 0:00:04]} Nf6 {[%emt 0:00:06]} 5. d3 {[%emt 0:00:07]} h6 {[%emt 0:00:09]} 6. Be3 {[%emt 0:00:04]} Bb6 {[%emt 0:00:08]} 7. O-O {[%emt 0:00:07]} O-O {[%emt 0:00:06]} 8. Qd2 {[%emt 0:00:15]} d6 {[%emt 0:00:05]} 9. h3 {[%emt 0:00:06]} Be6 {[%emt 0:00:17]} 10. Bb3 {[%emt 0:00:06]} Re8 {[%emt 0:00:39]} 11. Nd5 {[%emt 0:04:06]} Bxd5 {[%emt 0:00:26]} 12. Bxd5 {[%emt 0:01:07]} Nxd5 {[%emt 0:00:05]} 13. exd5 {[%emt 0:00:06]} Ne7 {[%emt 0:00:10]} 14. c4 {[%emt 0:01:24]} Ng6 {[%emt 0:00:31]} 15. a4 {[%emt 0:02:42]} c5 {[%emt 0:00:19]} 16. a5 {[%emt 0:04:08]} Bc7 {[%emt 0:00:11]} 17. Rfe1 {[%emt 0:07:16]} b6 {[%emt 0:01:12]} 18. a6 {[%emt 0:01:42]} Rb8 {[%emt 0:00:23]} 19. Qc2 {[%emt 0:09:22]} Qd7 {[%emt 0:00:15]} 20. Bd2 {[%emt 0:00:37]} b5 {[%emt 0:02:14]} 21. Reb1 {[%emt 0:07:35]} b4 {[%emt 0:00:39]} 22. b3 {[%emt 0:05:10]} Qd8 {[%emt 0:01:23]} 23. Qa2 {[%emt 0:01:57]} Qd7 {[%emt 0:00:12]} 24. Rd1 {[%emt 0:03:47]} Qf5 {[%emt 0:00:13]} 25. Be3 {[%emt 0:01:23]} e4 {[%emt 0:01:28]} 26. Qa4 {[%emt 0:00:21]} 0-1